fUSD/lending_fUSD_20250205
["ID","MTS","AMOUNT","RATE_DAILY","PERIOD"]
[351684635,1738721432775,-500.0,9.099e-05,2]
[351684637,1738721432785,-500.0,9.099e-05,2]
[351684639,1738721432794,-500.0,9.099e-05,2]
[351684641,1738721432803,-200.78605406,9.099e-05,2]
[351684643,1738721432813,-500.0,9.099e-05,2]
[351684645,1738721432822,-500.0,9.099e-05,2]
[351684647,1738721432831,-629.68,9.099e-05,2]
[351684649,1738721432840,-500.0,9.099e-05,2]
[351684651,1738721432850,-249.44805219,9.236e-05,2]
[351684653,1738721432859,-500.0,9.236e-05,2]
[351684655,1738721432868,-505.68,9.236e-05,2]
[351684657,1738721432878,-582.84,9.236e-05,2]
[351684659,1738721432888,-500.0,9.236e-05,2]
[351684661,1738721432897,-500.0,9.236e-05,2]
[351684663,1738721432907,-500.0,9.236e-05,2]
[351684665,1738721432916,-322.67735973,9.236e-05,2]
[351684667,1738721432925,-500.0,9.236e-05,2]
[351684669,1738721432934,-500.0,9.236e-05,2]
[351684671,1738721432943,-500.0,9.236e-05,2]
[351684673,1738721432953,-500.0,9.236e-05,2]
[351684675,1738721432962,-500.0,9.236e-05,2]
[351684677,1738721432971,-500.0,9.236e-05,2]
[351684678,1738721432981,-500.0,9.236e-05,2]
[351684680,1738721432991,-500.0,9.236e-05,2]
[351684681,1738721433000,-500.0,9.236e-05,2]
[351684682,1738721433009,-500.0,9.236e-05,2]
[351684684,1738721433019,-500.0,9.236e-05,2]
[351684685,1738721433028,-629.68,9.236e-05,2]
[351684686,1738721433038,-500.0,9.236e-05,2]
[351684687,1738721433047,-500.0,9.373e-05,2]
[351684688,1738721433056,-505.68,9.373e-05,2]
[351684690,1738721433066,-582.84,9.373e-05,2]
[351684692,1738721433075,-500.0,9.373e-05,2]
[351684693,1738721433084,-500.0,9.373e-05,2]
[351684694,1738721433093,-500.0,9.373e-05,2]
[351684695,1738721433103,-500.0,9.373e-05,2]
[351684696,1738721433112,-500.0,9.373e-05,2]
[351684697,1738721433122,-500.0,9.373e-05,2]
[351684698,1738721433131,-500.0,9.373e-05,2]
[351684699,1738721433140,-500.0,9.373e-05,2]
[351684700,1738721433149,-500.0,9.373e-05,2]
[351684701,1738721433158,-500.0,9.373e-05,2]
[351684702,1738721433167,-500.0,9.373e-05,2]
[351684703,1738721433176,-500.0,9.373e-05,2]
[351684704,1738721433186,-500.0,9.373e-05,2]
[351684705,1738721433197,-434.91476237,9.373e-05,2]
[351684706,1738721433207,-629.68,9.373e-05,2]
[351684707,1738721433216,-662.12908891,9.478e-05,2]
[351684708,1738721433226,-500.0,9.51e-05,2]
[351684709,1738721433235,-505.68,9.51e-05,2]
[351684710,1738721433245,-582.84,9.51e-05,2]
[351684711,1738721433255,-500.0,9.51e-05,2]
[351684712,1738721433267,-500.0,9.51e-05,2]
[351684713,1738721433276,-500.0,9.51e-05,2]
[351684714,1738721433287,-500.0,9.51e-05,2]
[351684715,1738721433296,-500.0,9.51e-05,2]
[351684716,1738721433305,-500.0,9.51e-05,2]
[351684717,1738721433315,-500.0,9.51e-05,2]
[351684718,1738721433324,-634.8490266,9.51e-05,2]
[351684719,1738721433334,-500.0,9.51e-05,2]
[351684720,1738721433343,-500.0,9.51e-05,2]
[351684721,1738721433352,-500.0,9.51e-05,2]
[351684722,1738721433361,-500.0,9.51e-05,2]
[351684723,1738721433372,-500.0,9.51e-05,2]
[351684724,1738721433381,-629.68,9.51e-05,2]
[351684725,1738721433390,-500.0,9.647e-05,2]
[351684726,1738721433400,-505.68,9.647e-05,2]
[351684727,1738721433409,-582.84,9.647e-05,2]
[351684728,1738721433418,-500.0,9.647e-05,2]
[351684729,1738721433429,-500.0,9.647e-05,2]
[351684730,1738721433438,-500.0,9.647e-05,2]
[351684731,1738721433447,-500.0,9.647e-05,2]
[351684732,1738721433457,-297.45729485,9.647e-05,2]
[351684733,1738721433466,-500.0,9.647e-05,2]
[351684734,1738721433476,-500.0,9.647e-05,2]
[351684735,1738721433485,-500.0,9.647e-05,2]
[351684736,1738721433495,-500.0,9.647e-05,2]
[351684737,1738721433505,-500.0,9.647e-05,2]
[351684738,1738721433515,-500.0,9.647e-05,2]
[351684739,1738721433524,-500.0,9.647e-05,2]
[351684740,1738721433533,-629.68,9.647e-05,2]
[351684741,1738721433543,-198.67,9.736e-05,2]
[351684742,1738721433552,-500.0,9.784e-05,2]
[351684743,1738721433561,-505.68,9.784e-05,2]
[351684744,1738721433571,-582.84,9.784e-05,2]
[351684745,1738721433580,-500.0,9.784e-05,2]
[351684746,1738721433589,-500.0,9.784e-05,2]
[351684747,1738721433599,-500.0,9.784e-05,2]
[351684748,1738721433608,-500.0,9.784e-05,2]
[351684749,1738721433618,-500.0,9.784e-05,2]
[351684750,1738721433627,-500.0,9.784e-05,2]
[351684751,1738721433636,-500.0,9.784e-05,2]
[351684752,1738721433646,-500.0,9.784e-05,2]
[351684753,1738721433655,-500.0,9.784e-05,2]
[351684754,1738721433665,-500.0,9.784e-05,2]
[351684755,1738721433675,-500.0,9.784e-05,2]
[351684756,1738721433684,-629.68,9.784e-05,2]
[351684757,1738721433693,-500.0,9.87e-05,2]
[351684758,1738721433703,-500.0,9.921e-05,2]
[351684759,1738721433712,-505.68,9.921e-05,2]
[351684760,1738721433722,-582.84,9.921e-05,2]
[351684761,1738721433732,-500.0,9.921e-05,2]
[351684762,1738721433742,-359.12813073,9.921e-05,2]
[351684763,1738721433751,-500.0,9.921e-05,2]
[351684764,1738721433761,-500.0,9.921e-05,2]
[351684765,1738721433770,-500.0,9.921e-05,2]
[351684766,1738721433780,-500.0,9.921e-05,2]
[351684767,1738721433790,-500.0,9.921e-05,2]
[351684768,1738721433800,-500.0,9.921e-05,2]
[351684769,1738721433810,-500.0,9.921e-05,2]
[351684770,1738721433819,-500.0,9.921e-05,2]
[351684771,1738721433829,-500.0,9.921e-05,2]
[351684772,1738721433839,-629.68,9.921e-05,2]
[351684773,1738721433848,-460.49,9.978e-05,2]
[351684774,1738721433858,-662.12908891,9.984e-05,2]
[351684775,1738721433867,-531.0,0.0001,2]
[351684776,1738721433876,-500.0,0.0001,2]
[351684777,1738721433886,-500.0,0.0001,2]
[351684778,1738721433896,-220.47,0.0001,2]
[351684779,1738721433906,-239556.17815396,0.0001,2]
[351684780,1738721433915,-500.0,0.00010058,2]
[351684781,1738721433925,-505.68,0.00010058,2]
[351684782,1738721433934,-582.84,0.00010058,2]
[351684783,1738721433944,-500.0,0.00010058,2]
[351684784,1738721433953,-500.0,0.00010058,2]
[351684785,1738721433962,-500.0,0.00010058,2]
[351684786,1738721433971,-500.0,0.00010058,2]
[351684787,1738721433981,-500.0,0.00010058,2]
[351684788,1738721433991,-500.0,0.00010058,2]
[351684789,1738721434001,-500.0,0.00010058,2]
[351684790,1738721434010,-500.0,0.00010058,2]
[351684791,1738721434019,-475.04181486,0.00010058,2]
[351684792,1738721434029,-500.0,0.00010058,2]
[351684793,1738721434039,-629.68,0.00010058,2]
[351684794,1738721434049,-157.83,0.00010137,2]
[351684795,1738721434059,-905.01,0.00010137,2]
[351684796,1738721434068,-23900.0,0.00010152,2]
[351684797,1738721434077,-343.03,0.00010152,2]
[351684798,1738721434088,-1000.0,0.00010152,2]
[351684799,1738721434098,-250.0,0.00010152,2]
[351684800,1738721434107,-538.45835,0.00010152,2]
[351684801,1738721434117,-1597.49,0.00010171,2]
[351684802,1738721434126,-500.0,0.00010194,2]
[351684803,1738721434135,-500.0,0.00010194,2]
[351684804,1738721434145,-500.0,0.00010194,2]
[351684805,1738721434154,-500.0,0.00010194,2]
[351684806,1738721434163,-502.08260758,0.00010194,2]
[351684807,1738721434173,-193.85292561,0.00010194,2]
[351684808,1738721434182,-500.0,0.00010194,2]
[351684809,1738721434193,-291.56716298,0.00010194,2]
[351684810,1738721434205,-428.72213612,0.00010194,2]
[351684811,1738721434214,-300.61785199,0.00010195,2]
[351684812,1738721434223,-505.68,0.00010195,2]
[351684813,1738721434232,-582.84,0.00010195,2]
[351684814,1738721434243,-620.95791941,0.00010195,2]
[351684815,1738721434252,-500.0,0.00010195,2]
[351684816,1738721434467,-500.0,0.00010195,2]
[351684817,1738721434477,-500.0,0.00010195,2]
[351684818,1738721434488,-500.0,0.00010195,2]
[351684819,1738721434498,-500.0,0.00010195,2]
[351684820,1738721434508,-500.0,0.00010195,2]
[351684821,1738721434517,-500.0,0.00010195,2]
[351684822,1738721434527,-596.35402424,0.00010195,2]
[351684823,1738721434536,-629.68,0.00010195,2]
[351684824,1738721434545,-1535.75,0.00010233,2]
[351684825,1738721434555,-505.68,0.00010332,2]
[351684826,1738721434564,-582.84,0.00010332,2]
[351684827,1738721434574,-500.0,0.00010332,2]
[351684828,1738721434583,-500.0,0.00010332,2]
[351684829,1738721434593,-500.0,0.00010332,2]
[351684830,1738721434602,-454.08237994,0.00010332,2]
[351684831,1738721434611,-500.0,0.00010332,2]
[351684832,1738721434621,-500.0,0.00010332,2]
[351684833,1738721434630,-286.18341949,0.00010332,2]
[351684834,1738721434639,-629.68,0.00010332,2]
[351684835,1738721434649,-165.34,0.00010358,2]
[351684836,1738721434659,-662.12908891,0.00010389,2]
[351684837,1738721434668,-439.5,0.00010441,2]
[351684838,1738721434677,-712.21,0.00010464,2]
[351684839,1738721434687,-505.68,0.00010469,2]
[351684840,1738721434696,-582.84,0.00010469,2]
[351684841,1738721434706,-500.0,0.00010469,2]
[351684842,1738721434715,-500.0,0.00010469,2]
[351684843,1738721434724,-500.0,0.00010469,2]
[351684844,1738721434734,-500.0,0.00010469,2]
[351684845,1738721434745,-500.0,0.00010469,2]
[351684846,1738721434755,-629.68,0.00010469,2]
[351684847,1738721434764,-150.0,0.00010478,2]
[351684848,1738721434773,-774.8,0.00010541,2]
[351684849,1738721434783,-505.68,0.00010606,2]
[351684850,1738721434792,-582.84,0.00010606,2]
[351684851,1738721434801,-643.66069923,0.00010606,2]
[351684852,1738721434811,-500.0,0.00010606,2]
[351684853,1738721434821,-500.0,0.00010606,2]
[351684854,1738721434830,-198.6225332,0.00010606,2]
[351684855,1738721434839,-500.0,0.00010606,2]
[351684856,1738721434849,-629.68,0.00010606,2]
[351684857,1738721434858,-150.0,0.00010678,2]
[351684858,1738721434867,-505.68,0.00010743,2]
[351684859,1738721434877,-582.84,0.00010743,2]
[351684860,1738721434886,-500.0,0.00010743,2]
[351684861,1738721434904,-500.0,0.00010743,2]
[351684862,1738721434917,-500.0,0.00010743,2]
[351684863,1738721434927,-629.68,0.00010743,2]
[351684864,1738721434936,-505.68,0.0001088,2]
[351684865,1738721434946,-582.84,0.0001088,2]
[351684866,1738721434956,-500.0,0.0001088,2]
[351684867,1738721434966,-500.0,0.0001088,2]
[351684868,1738721434975,-500.0,0.0001088,2]
[351684869,1738721434987,-629.68,0.0001088,2]
[351684870,1738721434997,-662.12908891,0.00010895,2]
[351684871,1738721435006,-500.0,0.00010896,2]
[351684872,1738721435015,-500.0,0.00010896,2]
[351684873,1738721435025,-500.0,0.00010896,2]
[351684874,1738721435035,-500.0,0.00010896,2]
[351684875,1738721435045,-500.0,0.00010896,2]
[351684876,1738721435056,-395.70173858,0.00010896,2]
[351684877,1738721435067,-500.0,0.00010896,2]
[351684878,1738721435076,-500.0,0.00010896,2]
[351684879,1738721435086,-500.0,0.00010896,2]
[351684880,1738721435096,-505.02795397,0.00010896,2]
[351684881,1738721435106,-500.0,0.00010896,2]
[351684882,1738721435117,-500.0,0.00010896,2]
[351684883,1738721435129,-500.0,0.00010896,2]
[351684884,1738721435141,-500.0,0.00010896,2]
[351684885,1738721435152,-166.96863901,0.00010896,2]
[351684886,1738721435163,-4574.1771926,0.00010942,2]
[351684887,1738721435174,-198.67,0.00010953,2]
[351684888,1738721435184,-150.0,0.00010959,2]
[351684889,1738721435198,-1059.15034804,0.00011014,2]
[351684890,1738721435216,-890.67725196,0.00011014,2]
[351684891,1738721435228,-505.68,0.00011016,2]
[351684892,1738721435238,-582.84,0.00011016,2]
[351684893,1738721435248,-68.75363284,0.00011016,2]
[351684894,1738721435260,-164.83576638,0.00011016,2]
[351684895,1738721435271,-500.0,0.00011016,2]
[351684896,1738721435280,-135.16420362,0.00011016,2]
[351684897,1738721435292,-364.83579638,0.00011016,2]
[351684898,1738721435302,-629.68,0.00011016,2]
[351684899,1738721435313,-566.92421862,0.00011041,2]
[351684900,1738721435326,-310.13578138,0.00011041,2]
[351684901,1738721435337,-439.5,0.00011041,2]
[351684902,1738721435347,-1097.43727612,0.00011041,2]
[351684903,1738721435360,-592.75272388,0.00011041,2]
[351684904,1738721435371,-439.5,0.00011041,2]
[351684905,1738721435381,-439.5,0.00011041,2]
[351684906,1738721435391,-439.5,0.00011041,2]
[351684907,1738721435400,-439.5,0.00011041,2]
[351684908,1738721435410,-150.43,0.00011041,2]
[351684909,1738721435421,-153.0,0.000111,2]
[351684910,1738721435432,-505.68,0.00011153,2]
[351684911,1738721435442,-582.84,0.00011153,2]
[351684912,1738721435453,-500.0,0.00011153,2]
[351684913,1738721435464,-500.0,0.00011153,2]
[351684914,1738721435475,-629.68,0.00011153,2]
[351684915,1738721435485,-874.17251302,0.00011233,2]
[351684916,1738721435502,-505.68,0.0001129,2]
[351684917,1738721435512,-582.84,0.0001129,2]
[351684918,1738721435522,-500.0,0.0001129,2]
[351684919,1738721435534,-500.0,0.0001129,2]
[351684920,1738721435544,-629.68,0.0001129,2]
[351684921,1738721435555,-500.32136827,0.00011327,2]
[351684922,1738721435565,-500.35428693,0.00011327,2]
[351684923,1738721435575,-526.97711104,0.00011327,2]
[351684924,1738721435584,-500.39736219,0.00011327,2]
[351684925,1738721435595,-501.11024481,0.00011327,2]
[351684926,1738721435605,-500.86070242,0.00011327,2]
[351684927,1738721435615,-500.76592872,0.00011327,2]
[351684928,1738721435625,-500.46644044,0.00011327,2]
[351684929,1738721435635,-500.25881897,0.00011327,2]
[351684930,1738721435646,-500.57806288,0.00011327,2]
[351684931,1738721435655,-2000.0,0.00011358,2]
[351684932,1738721435665,-180.82978718,0.00011368,2]
[351684933,1738721435675,-2852.317,0.00011368,2]
[351684934,1738721435685,-2500.0,0.000114,2]
[351684935,1738721435695,-2500.0,0.000114,2]
[351684936,1738721435705,-662.12908891,0.000114,2]
[351684937,1738721435714,-366.0,0.000114,2]
[351684938,1738721435723,-746.0,0.000114,2]
[351684939,1738721435733,-231.0,0.000114,2]
[351684940,1738721435746,-1000.0,0.00011421,2]
[351684941,1738721435755,-505.68,0.00011427,2]
[351684942,1738721435764,-582.84,0.00011427,2]
[351684943,1738721435774,-500.0,0.00011427,2]
[351684944,1738721435783,-500.0,0.00011427,2]
[351684945,1738721435793,-629.68,0.00011427,2]
[351684946,1738721435802,-9401.78846424,0.00011447,2]
[351684947,1738721435812,-502.85747432,0.00011473,2]
[351684948,1738721435822,-207.6148526,0.00011473,2]
[351684949,1738721435831,-500.0,0.00011473,2]
[351684950,1738721435841,-500.0,0.00011479,2]
[351684951,1738721435850,-500.0,0.00011479,2]
[351684952,1738721435859,-500.0,0.00011479,2]
[351684953,1738721435868,-500.0,0.00011479,2]
[351684954,1738721435877,-661.0,0.00011479,2]
[351684955,1738721435886,-500.0,0.00011479,2]
[351684956,1738721435895,-500.0,0.00011479,2]
[351684957,1738721435905,-500.0,0.00011479,2]
[351684958,1738721435914,-500.0,0.00011479,2]
[351684959,1738721435923,-500.0,0.00011479,2]
[351684960,1738721435932,-500.0,0.00011479,2]
[351684961,1738721435941,-500.0,0.00011479,2]
[351684962,1738721435951,-500.0,0.00011479,2]
[351684963,1738721435962,-500.0,0.00011479,2]
[351684964,1738721435971,-500.0,0.00011479,2]
[351684965,1738721435982,-500.0,0.00011479,2]
[351684966,1738721435993,-500.0,0.00011479,2]
[351684967,1738721436003,-500.0,0.00011479,2]
[351684968,1738721436013,-500.0,0.00011479,2]
[351684969,1738721436022,-500.0,0.00011479,2]
[351684970,1738721436031,-500.0,0.00011479,2]
[351684971,1738721436041,-500.0,0.00011479,2]
[351684972,1738721436051,-500.0,0.00011479,2]
[351684973,1738721436060,-500.0,0.00011479,2]
[351684974,1738721436069,-500.0,0.00011479,2]
[351684975,1738721436079,-500.0,0.00011479,2]
[351684976,1738721436088,-500.0,0.00011479,2]
[351684977,1738721436097,-500.0,0.00011479,2]
[351684978,1738721436107,-500.0,0.00011479,2]
[351684979,1738721436116,-500.0,0.00011479,2]
[351684980,1738721436126,-503.0,0.00011479,2]
[351684981,1738721436135,-500.0,0.00011479,2]
[351684982,1738721436145,-500.0,0.00011479,2]
[351684983,1738721436155,-500.0,0.00011479,2]
[351684984,1738721436164,-504.0,0.00011479,2]
[351684985,1738721436174,-500.0,0.00011479,2]
[351684986,1738721436183,-500.0,0.00011479,2]
[351684987,1738721436195,-500.0,0.00011479,2]
[351684988,1738721436205,-500.0,0.00011479,2]
[351684989,1738721436215,-500.0,0.00011479,2]
[351684990,1738721436224,-500.0,0.00011479,2]
[351684991,1738721436235,-500.0,0.00011479,2]
[351684992,1738721436246,-500.0,0.00011479,2]
[351684993,1738721436256,-500.0,0.00011479,2]
[351684994,1738721436266,-500.0,0.00011479,2]
[351684995,1738721436279,-500.0,0.00011479,2]
[351684996,1738721436289,-500.0,0.00011479,2]
[351684997,1738721436299,-500.0,0.00011479,2]
[351684998,1738721436308,-500.0,0.00011479,2]
[351684999,1738721436318,-19958.0,0.00011479,2]
[351685000,1738721436328,-688.09962389,0.00011496,3]
[351685001,1738721436338,-18199.44948838,0.00011497,2]
[351685002,1738721436525,-250.0,0.00011497,2]
[351685003,1738721436537,-742.47411455,0.00011497,2]
[351685004,1738721436557,-1074.7260725,0.00011497,2]
[351685005,1738721436568,-144976.69142799,0.00011497,2]
[351685006,1738721436578,-573.87284311,0.00011497,2]
[351685007,1738721436587,-233.50182107,0.00011498,2]
[351685008,1738721436596,-399782.67891251,0.00011498,2]
[351685009,1738721436607,-333906.33050585,0.00011498,2]
[351685010,1738721436618,-308.13345431,0.00011498,2]
[351685011,1738721436630,-529.25076049,0.00011498,2]
[351685012,1738721436640,-627.13698751,0.00011498,2]
[351685014,1738721437435,-2155.210027,8.907e-05,2]
[351685015,1738721437445,-64.32365,9.373e-05,2]
[351685016,1738721437456,-435.67635,9.373e-05,2]
[351685017,1738721437466,-500.0,9.51e-05,2]
[351685018,1738721437476,-500.0,9.647e-05,2]
[351685019,1738721437487,-500.0,9.784e-05,2]
[351685020,1738721437497,-500.0,9.921e-05,2]
[351685021,1738721437507,-500.0,0.00010058,2]
[351685022,1738721437516,-500.0,0.00010195,2]
[351685023,1738721437526,-500.0,0.00010332,2]
[351685024,1738721437535,-456.39382576,0.00010469,2]
[351685025,1738721437545,-42662.42982423,0.00011498,2]
[351685026,1738721437591,-925.0,0.00011498,2]
[351685027,1738721437671,-6754.99999999,0.00011498,2]
[351685028,1738721437682,-712.33,0.00011498,2]
[351685029,1738721437694,-9440.0,0.00011498,2]
[351685030,1738721437764,-252.90102083,0.00011498,2]
[351685031,1738721437776,-490.0,0.00011498,2]
[351685043,1738721439553,-167853.19957665,0.00011498,2]
[351685044,1738721439564,-49620.64236272,0.00011498,2]
[351685045,1738721439651,-2015.97559157,0.00011498,2]
[351685046,1738721439664,-6492.98264759,0.00011498,2]
[351685047,1738721439775,-3722.71180881,0.00011498,2]
[351685048,1738721441417,-330.99725924,0.00011498,2]
[351685049,1738721441429,-4756.13601858,0.00011498,2]
[351685050,1738721441440,-1000.0,0.00011498,2]
[351685051,1738721441478,-807.27706123,0.00011498,2]
[351685052,1738721441490,-938.99999995,0.00011498,2]
[351685053,1738721441504,-1402.89342661,0.00011498,2]
[351685054,1738721441515,-525.90825006,0.00011498,2]
[351685055,1738721441526,-654.839996,0.00011498,2]
[351685056,1738721441538,-2789.09999999,0.00011498,2]
[351685057,1738721441550,-923.60000179,0.00011498,2]
[351685058,1738721441561,-655.0,0.00011498,2]
[351685084,1738721442548,-32500.00000017,0.00011498,2]
[351685086,1738721442839,-62881.93564378,0.00011498,2]
[351685087,1738721442851,-4777.18567649,0.00011498,2]
[351685088,1738721442863,-2654.38987422,0.00011498,2]
[351685089,1738721442875,-13010.12,0.00011498,2]
[351685090,1738721442887,-432.86,0.00011498,2]
[351685092,1738721442899,-500.42123531,0.00011498,2]
[351685093,1738721442918,-1871000.0000037,0.00011498,2]
[351685094,1738721442930,-6660.55551585,0.00011498,2]
[351685095,1738721442942,-19287.0,0.00011498,2]
[351685096,1738721442954,-382.861,0.00011498,2]
[351685097,1738721442967,-271.92,0.00011498,2]
[351685098,1738721442978,-965.76973347,0.00011498,2]
[351685100,1738721442997,-47515.29236352,0.00011498,2]
[351685102,1738721443010,-515.53846259,0.00011498,2]
[351685104,1738721443022,-19725.66690731,0.00011498,2]
[351685106,1738721443040,-5197.04994013,0.00011498,2]
[351685115,1738721445753,-469.76278846,0.00011498,2]
[351685116,1738721445764,-420.65116496,0.00011498,2]
[351685117,1738721445776,-19294.98325664,0.00011498,2]
[351685118,1738721445787,-20684.63573686,0.00011498,2]
[351685119,1738721445799,-3749.0,0.00011498,2]
[351685120,1738721445810,-4351.0,0.00011498,2]
[351685121,1738721445821,-27750.0,0.00011498,2]
[351685122,1738721445834,-1065.83165509,0.00011498,2]
[351685123,1738721445868,-304.0,0.00011498,2]
[351685125,1738721445879,-133579.49581032,0.00011498,2]
[351685128,1738721476568,1217.8177,8.699e-05,2]
[351685133,1738721787218,703.3,8.234e-05,2]
[351685141,1738722341422,107610.28561581,8.8e-05,2]
[351685142,1738722341445,15124.07956442,8.8e-05,2]
[351685149,1738722543277,931.4418355,0.000189,120]
[351685172,1738722631705,-150.0,8.951e-05,2]
[351685174,1738722631719,-500.0,8.952e-05,2]
[351685176,1738722631733,-140.79000001,8.952e-05,2]
[351685179,1738722631830,-359.20999999,8.952e-05,2]
[351685180,1738722631841,-500.0,8.952e-05,2]
[351685181,1738722631850,-137.38053785,8.952e-05,2]
[351685182,1738722631863,-379.12081072,8.952e-05,2]
[351685183,1738722631873,-500.0,8.952e-05,2]
[351685184,1738722631883,-510.64498058,8.952e-05,2]
[351685185,1738722631894,-500.0,8.952e-05,2]
[351685186,1738722631904,-500.0,8.952e-05,2]
[351685187,1738722631914,-475.18565761,8.952e-05,2]
[351685188,1738722631927,-24.81434239,8.952e-05,2]
[351685189,1738722631937,-500.0,8.952e-05,2]
[351685190,1738722631947,-500.0,8.952e-05,2]
[351685191,1738722631957,-500.0,8.952e-05,2]
[351685192,1738722631967,-500.0,8.952e-05,2]
[351685193,1738722631977,-500.0,8.952e-05,2]
[351685194,1738722631987,-500.0,8.952e-05,2]
[351685195,1738722631997,-500.0,8.952e-05,2]
[351685196,1738722632007,-500.0,8.952e-05,2]
[351685197,1738722632016,-500.0,8.952e-05,2]
[351685198,1738722632026,-500.0,8.952e-05,2]
[351685199,1738722632036,-330.0,8.952e-05,2]
[351685200,1738722632045,-48.10565757,8.952e-05,2]
[351685201,1738722632057,-467.62179774,8.952e-05,2]
[351685202,1738722632067,-1000.0,8.972e-05,2]
[351685203,1738722632076,-298.97820276,8.972e-05,2]
[351685204,1738722632088,-418.29943014,8.972e-05,2]
[351685205,1738722632099,-582.7223671,8.972e-05,2]
[351685206,1738722632108,-574.4323729,8.973e-05,2]
[351685207,1738722632121,-26276.91881602,8.973e-05,2]
[351685208,1738722632132,-950.50976812,8.973e-05,2]
[351685209,1738722632144,-8711.15024296,8.973e-05,2]
[351685210,1738722632154,-4683.74,8.973e-05,2]
[351685211,1738722632164,-516.27388231,8.973e-05,2]
[351685212,1738722632175,-10592.97,9.773e-05,2]
[351685213,1738722632184,-422.50717593,9.781e-05,7]
[351685214,1738722632194,-798.74,9.918e-05,2]
[351685215,1738722632203,-250.0,9.969e-05,2]
[351685216,1738722632213,-500.0,9.999e-05,2]
[351685217,1738722632229,-250.3904737,9.999e-05,2]
[351685218,1738722632239,-30787.77733737,0.0001,2]
[351685219,1738722632250,-891.00211688,0.0001,2]
[351685221,1738722632275,-3942.25975516,0.0001,2]
[351685223,1738722632287,-662.2,0.0001,2]
[351685224,1738722632305,-264.26611913,0.0001,2]
[351685225,1738722632315,-970.77143134,0.0001,2]
[351685226,1738722632427,-1034.89943521,0.0001,2]
[351685227,1738722632439,-937.53716183,0.0001,2]
[351685228,1738722632451,-1155.03834683,0.0001,2]
[351685244,1738722637653,-704.28583635,0.0001,2]
[351685245,1738722637666,-6629.83512267,0.0001,2]
[351685246,1738722637678,-2437.59954358,0.0001,2]
[351685247,1738722637742,-6066.0,0.0001,2]
[351685248,1738722637754,-7194.21140675,0.0001,2]
[351685249,1738722637766,-1838.98,0.0001,2]
[351685250,1738722637778,-20000.0,0.0001,2]
[351685251,1738722637790,-12000.00000015,0.0001,2]
[351685252,1738722637881,-2764.4778207,0.0001,2]
[351685253,1738722637894,-3398.98914353,0.0001,2]
[351685254,1738722637904,-50447.55455621,0.0001,2]
[351685255,1738722638135,-730.83658683,0.0001,2]
[351685256,1738722638146,-425.83593057,0.0001,2]
[351685257,1738722638157,-8466.66498238,0.0001,2]
[351685258,1738722638168,-3427.46765702,0.0001,2]
[351685259,1738722638179,-1109.58021,0.0001,2]
[351685260,1738722638197,-487.64485839,0.0001,2]
[351685261,1738722638208,-1756.33430446,0.0001,2]
[351685262,1738722638219,-1040.67,0.0001,2]
[351685263,1738722638242,-455.625,0.0001,2]
[351685264,1738722638254,-1287.60220752,0.0001,2]
[351685265,1738722638265,-544.82978965,0.0001,2]
[351685266,1738722638276,-487.5,0.0001,2]
[351685267,1738722639568,-1224.77431413,0.0001,2]
[351685268,1738722639581,-11679.55018644,0.0001,2]
[351685269,1738722639592,-9191.2,0.0001,2]
[351685271,1738722639605,-300.0,0.0001,2]
[351685272,1738722639740,-320.45986891,0.0001,2]
[351685273,1738722639751,-1032.71552298,0.0001,2]
[351685274,1738722639762,-77361.02192736,0.0001,2]